Cogmind - Beta 17 @@@ ROGUE MODE // 2026.07.01 @ 09:24:42 Player: szymekc Result: Destroyed by S-10 Pest with Light Assault Rifle Performance ------------- Evolutions (0) 0 Regions Visited (3) 600 Robots Destroyed (44) 220 Value Destroyed (1176) 1176 Prototype IDs (19) 380 Alien Tech Used (0) 0 Bonus (7095) 7095 TOTAL SCORE: 9471 Bonus ------- Follower Combat Kills 82 Prayed to X0-1V1 5000 Major X0-1V1 Interference 2250 Friendly Fire -237 Cogmind --------- Core Integrity 0/275 Matter 358/900 Energy 100/100 System Corruption 20% Temperature Cool (0) Movement Core (3350) Ox66 Location -10/Subcaves Parts ------- > --- POWER (1) -------- (None) > --- PROPULSION (1) --- (None) > --- UTILITY (3) ------ Humpback > --- WEAPON (2) ------- (None) > --- INVENTORY (35) --- Subdweller Power Source Subdweller Power Source Spiked Treads Armored Wheel Armored Wheel Improved Heat Sink High-capacity Storage Unit Subdweller Optics Experimental Sensor Array Seismic Detector Scrap Shield Tower Shield Self-contained Transmogrifier Subdweller Beam Cannon Subdweller Beam Cannon Multitool Hammer SUBCON Basin (Full) Peak State ------------ > --- POWER ------------ Improved Ion Engine > --- PROPULSION ------- Armored Wheel > --- UTILITY ---------- Humpback X0-1V1's Piety Tracker > --- WEAPON ----------- Subdweller Beam Cannon EMP Blaster > --- INVENTORY -------- Subdweller Power Source Subdweller Power Source Spiked Treads Armored Wheel Armored Wheel Improved Heat Sink High-capacity Storage Unit Subdweller Optics Experimental Sensor Array Seismic Detector Scrap Shield Tower Shield Self-contained Transmogrifier Subdweller Beam Cannon Subdweller Beam Cannon Multitool Hammer SUBCON Basin [Rating: 47] Favorites ----------- Power Improved Ion Engine Engine Improved Ion Engine Propulsion Armored Wheel Treads Light Treads Leg Aluminum Leg Wheel Armored Wheel Utility X0-1V1's Piety Tracker Device X0-1V1's Piety Tracker Storage High-capacity Storage Unit Protection Light Armor Plating Weapon Beam Cannon Energy Gun Particle Gun Energy Cannon Beam Cannon Ballistic Gun Light Assault Rifle Launcher EMP Blaster Special Weapon Mining Laser Build | -11 -10 -10 -10 ------- Run | Yrd Mat Min Sub Slots Evolved . | . . . . Power . | . . . . Propulsion . | . . . . Utility . | . . . . Weapon . | . . . . Parts Attached 38 | 7 14 5 12 Power 5 | 1 2 1 1 Engine 5 | 1 2 1 1 Core . | . . . . Reactor . | . . . . Propulsion 7 | 2 2 1 2 Treads 4 | 2 . 1 1 Leg 1 | . 1 . . Wheel 2 | . 1 . 1 Hover . | . . . . Flight . | . . . . Utility 11 | 2 4 . 5 Device 6 | 2 1 . 3 Storage 4 | . 3 . 1 Processor . | . . . . Hackware . | . . . . Protection 1 | . . . 1 Artifact . | . . . . Weapon 15 | 2 6 3 4 Energy Gun 5 | 1 2 1 1 Energy Cannon 2 | . . . 2 Ballistic Gun 6 | 1 3 2 . Ballistic Cannon . | . . . . Launcher 1 | . . . 1 Special Weapon 1 | . 1 . . Impact Weapon . | . . . . Slashing Weapon . | . . . . Piercing Weapon . | . . . . Special Melee Weapon . | . . . . Unidentified Prototypes 1 | . 1 . . Parts Lost 12 | . 2 1 9 Power 2 | . . . 2 Propulsion 3 | . 1 1 1 Utility 3 | . . . 3 Weapon 4 | . 1 . 3 Highest Loss Streak 5 | . 2 1 5 To Critical Strikes . | . . . . Average Backups 15 | . 8 18 20 Power 1 | . 1 2 1 Propulsion 3 | . 1 5 5 Utility 4 | . . 4 6 Weapon 5 | . 4 6 5 Tool/Special . | . . . . Unused Backups 29 | . 5 1 23 Power 8 | . 3 1 4 Propulsion 7 | . 1 . 6 Utility 6 | . . . 6 Weapon 5 | . . . 5 Tool/Special 3 | . 1 . 2 Average Slot Usage (%) 94 | . 99 100 89 Engine 13 | . 14 14 13 Treads 10 | . 18 14 3 Leg 1 | . 3 . . Wheel 11 | . 5 14 14 Device 14 | . 16 14 12 Storage 13 | . 11 14 14 Energy Gun 6 | . 6 12 4 Energy Cannon 9 | . . . 18 Ballistic Gun 10 | . 19 14 4 Peak Build Rating 47 | 9 23 26 47 Average Rating 23 | 6 9 24 34 On Entrance 14 | . 9 23 26 Avg Prop Armor Cover (%) 11 | . 10 12 12 Naked Turns . | . . . . Heaviest Build 220 | 8 50 54 220 Greatest Support 40 | 40 40 12 12 Greatest Overweight (x) 18 | . 4 4 18 Average Overweight (x) 5 | . 1 3 10 Largest Inventory Capacity 35 | 5 20 20 35 Average Capacity 21 | 5 12 20 29 Most Carried 35 | 2 16 20 35 Average Carried 19 | . 8 18 27 Final Capacity 35 | 5 20 20 35 Final Carried 34 | 2 16 20 34 Class Distribution -------------------- 63% | Mutant 29% | Hauler-Mutant 6% | Scavenger-Mutant Dominant Class ---------------- Mutant | -10/Materials Mutant | -10/Mines Hauler-Mutant | -10/Subcaves Resources | -11 -10 -10 -10 ----------- Run | Yrd Mat Min Sub Matter Collected 1387 | 273 427 141 546 Remotely . | . . . . Salvage Created 1655 | 108 590 379 578 Parts 105 | 8 38 24 35 Haulers Intercepted 2 | . 2 . . Recyclers Shooed 5 | . 5 . . Parts Field Recycled . | . . . . Retrieved Matter . | . . . . Parts Self-Destructed 34 | . . . 34 Prevented 1 | . . . 1 Parts Restored . | . . . . Kills | -11 -10 -10 -10 ------- Run | Yrd Mat Min Sub Combat Hostiles Destroyed 34 | . 10 9 15 Guns 26 | . 10 9 7 Cannons 5 | . . . 5 AOE 3 | . . . 3 Classes Destroyed 11 | 2 6 1 2 Worker 1 | . 1 . . Tunneler 1 | 1 . . . Hauler 2 | . 2 . . Recycler 2 | 1 1 . . Mechanic 1 | . 1 . . Watcher 3 | . 3 . . Swarmer 8 | . 3 2 3 Grunt 20 | . 7 5 8 Sentry 2 | . . 2 . Artisan 1 | . . . 1 Subdweller 4 | . . . 4 Best Kill Streak 4 | 2 4 3 3 Combat Bots Only 3 | . 3 3 3 Max Kills in Single Turn 2 | 1 1 1 2 Gunslinging . | . . . . Exploded 2 | . . . 2 Melee . | . . . . Uniques/NPCs Destroyed . | . . . . Combat | -11 -10 -10 -10 -------- Run | Yrd Mat Min Sub Hostile Shots Fired 280 | . 80 40 160 Missed 86 | . 37 8 41 Hits 194 | . 43 32 119 Projectile 194 | . 43 32 119 AOE 2 | . . . 2 Critical Strikes 3 | . 2 1 . Damage Taken 2258 | . 549 458 1251 Core 513 | . 110 168 235 Absorbed by Shields . | . . . . Ignored by Resistances 58 | . . 10 48 Core Remaining (%) 100 | 100 . . . Volleys Fired 148 | 3 65 31 49 Largest 2 | 2 2 2 2 Hottest 135 | 70 130 100 135 Shots Fired 267 | 6 124 63 74 Gun 230 | 6 118 62 44 Cannon 28 | . . . 28 Launcher 2 | . . . 2 Special 7 | . 6 1 . Kinetic 168 | 3 108 36 21 Thermal 97 | 3 16 27 51 Explosive . | . . . . Electromagnetic 2 | . . . 2 Robot Hit Streak 23 | 4 10 9 23 Robot Miss Streak 5 | . 5 4 2 Penetration Max . | . . . . Secondary Targets 3 | . . 1 2 Max Gunslinging Chain 1 | . . 1 1 Shots Hit Robots 163 | 4 74 35 50 Core Hits 73 | 3 28 22 20 Critical Kills . | . . . . Critical Parts Destroyed 1 | . . . 1 Critical Strikes 3 | . . 2 1 Burn 2 | . . 2 . Destroy 1 | . . . 1 Melee Attacks . | . . . . Impact . | . . . . Slashing . | . . . . Piercing . | . . . . Sneak Attacks . | . . . . Combat Hostiles . | . . . . Follow-up Attacks . | . . . . Damage Inflicted 2647 | 37 945 475 1190 Guns 2059 | 37 931 475 616 Cannons 480 | . . . 480 Explosions 94 | . . . 94 Melee . | . . . . Ramming 14 | . 14 . . Kinetic 1237 | 25 842 159 211 Thermal 1302 | 12 89 316 885 Explosive . | . . . . Electromagnetic 94 | . . . 94 Impact . | . . . . Slashing . | . . . . Piercing . | . . . . Highest Corruption 20 | . 1 1 20 Average Corruption 7 | . 1 1 10 Corruption Purged . | . . . . Corruption Blocked . | . . . . Effects 79 | . 2 4 73 Message Errors 16 | . . 1 15 Matter Fused 22 | . 1 . 21 Heat Flow Errors 9 | . 1 . 8 Energy Discharges 14 | . . . 14 Parts Fused 2 | . . . 2 Data Loss (minor) 9 | . . 1 8 Data Loss (major) 1 | . . . 1 Misfires 3 | . . 2 1 Alerts 2 | . . . 2 Misdirections 1 | . . . 1 Overload Shots . | . . . . Overflow Damage 29 | . . . 29 Projectiles 29 | . . . 29 Explosions . | . . . . Melee . | . . . . Knockbacks 1 | . 1 . . Impact 1 | . 1 . . Kinetic . | . . . . Secondary . | . . . . Self-Inflicted Damage . | . . . . Shots . | . . . . Rammed 7 | . 7 . . Targets Rammed 10 | . 10 . . Kicked . | . . . . Crushed 3 | . 3 . . Highest Temperature 348 | 40 84 348 228 Average Temperature 78 | 19 23 125 75 Received Heat Transfer 1059 | . 309 246 504 Effects 1 | . . 1 . Energy Bleed 1 | . . 1 . Siege Activations . | . . . . Martial Activations . | . . . . Shielding Activations . | . . . . Robots Disrupted . | . . . . Combat Hostiles . | . . . . Robots Corrupted . | . . . . Combat Hostiles . | . . . . Parts Fried . | . . . . Impact Corruptions . | . . . . Robots Melted . | . . . . Combat Hostiles . | . . . . Parts Melted 3 | . . . 3 Heat Transferred 2553 | 37 222 888 1406 Parts Sabotaged . | . . . . Parts Stolen . | . . . . Parts Stripped . | . . . . Power Chain Reactions . | . . . . Alert | -11 -10 -10 -10 ------- Run | Yrd Mat Min Sub Maximum Alert Level . | . . . . Low Security (%) 100 | 100 100 100 . Level 1 . | . . . . Level 2 . | . . . . Level 3 . | . . . . Level 4 . | . . . . Level 5 . | . . . . High Security . | . . . . Max Security . | . . . . Peak Influence 87 | 5 87 70 . Initial . | . . . . Average 20 | . 22 21 . Influence Increases 901 | 10 355 282 254 Destroy 0b10 Robot/C 680 | . 200 240 240 Destroy 0b10 Robot/NC 55 | 10 45 . . Destroy Leader 100 | . 60 30 10 Allied During Kill 15 | . . 11 4 Successful Hack 11 | . 11 . . Destroy Structure 10 | . 9 1 . Lose Combat Pursuer 30 | . 30 . . Influence Decreases 866 | 10 355 261 240 Entered New Map 12 | . . . 12 Time Decay 730 | 10 335 227 158 Lost Part 90 | . 20 . 70 Lost Ally 34 | . . 34 . Squads Dispatched 3 | . 2 1 . Investigation 1 | . 1 . . Extermination . | . . . . Reinforcement 2 | . 1 1 . Assault . | . . . . Garrison . | . . . . Intercept . | . . . . Searches Triggered . | . . . . Construction Impeded . | . . . . Haulers Reinforced . | . . . . Active Scanning Responses . | . . . . Cargo Convoy Interrupts . | . . . . Stealth | -11 -10 -10 -10 --------- Run | Yrd Mat Min Sub Distress Signals . | . . . . Communications Jammed . | . . . . Distress Signals . | . . . . Times Spotted 55 | . 19 14 22 Peak Tracking Total 6 | . 4 3 6 Tactical Retreats 2 | . 2 . . Traps | -11 -10 -10 -10 ------- Run | Yrd Mat Min Sub Traps Triggered 3 | . 3 . . Indirectly . | . . . . Trap Hack Attempts . | . . . . Triggered . | . . . . Disarmed . | . . . . Reprogrammed . | . . . . Reused . | . . . . Traps Extracted . | . . . . Installed . | . . . . Triggered . | . . . . Most Traps Carried 4 | . . . 4 Machines | -11 -10 -10 -10 ---------- Run | Yrd Mat Min Sub Machines Disabled 1 | . . . 1 Max in Single Turn 1 | . . . 1 Machines Repaired . | . . . . Machines Dismantled . | . . . . Machines Sabotaged . | . . . . Overloaded Fab Kills . | . . . . Hacking | -11 -10 -10 -10 --------- Run | Yrd Mat Min Sub Machines Accessed 7 | . 4 . 3 Terminals 4 | . 4 . . Fabricators . | . . . . Repair Stations . | . . . . Recycling Units . | . . . . Scanalyzers . | . . . . Garrison Access . | . . . . Total Hacks 25 | . 14 . 11 Successful 17 | . 6 . 11 Failed 8 | . 8 . . Catastrophic 2 | . 2 . . Database Lockouts . | . . . . Manual 11 | . 11 . . Terminals 14 | . 14 . . Fabricators . | . . . . Repair Stations . | . . . . Recycling Units . | . . . . Scanalyzers . | . . . . Garrison Access . | . . . . Terminal Hacks 17 | . 6 . 11 Record 8 | . . . 8 Robot Analysis 3 | . 3 . . Prototype ID Bank 2 | . 2 . . Open Door 1 | . . . 1 Hauler Manifests 1 | . 1 . . Proto ID Catalog 1 | . . . 1 Release Object 1 | . . . 1 Fabricator Hacks . | . . . . Repair Station Hacks . | . . . . Recycling Unit Hacks . | . . . . Scanalyzer . | . . . . Garrison Access Hacks . | . . . . Unauthorized Hacks . | . . . . Terminals . | . . . . Fabricators . | . . . . Repair Stations . | . . . . Recycling Units . | . . . . Scanalyzers . | . . . . Garrison Access . | . . . . Data Cores Recovered . | . . . . Used . | . . . . Hacking Detections 4 | . 4 . . Full Trace Events . | . . . . Feedback Events . | . . . . Feedback Blocked . | . . . . Robot Schematics Acquired . | . . . . Robots Built . | . . . . Authchips . | . . . . Time . | . . . . Total Robot Build Rating . | . . . . Part Schematics Acquired . | . . . . Parts Built . | . . . . Authchips . | . . . . Time . | . . . . Total Part Build Rating . | . . . . Part Studies Acquired . | . . . . Parts Repaired . | . . . . Time . | . . . . Parts Recycled . | . . . . Recycled Matter . | . . . . Retrieved Matter . | . . . . Retrieved Components . | . . . . Parts Scanalyzed . | . . . . Part Schematics Acquired . | . . . . Parts Damaged . | . . . . Bothacking | -11 -10 -10 -10 ------------ Run | Yrd Mat Min Sub Used RIF Installer . | . . . . Robots Hacked . | . . . . Non-combat . | . . . . Combat . | . . . . Robot Hacks Applied . | . . . . Relay Couplers Released . | . . . . Fabnet Peak Effective % . | . . . . Robots Rewired . | . . . . Allies Hacked . | . . . . Hacks Repelled . | . . . . Allies | -11 -10 -10 -10 -------- Run | Yrd Mat Min Sub Total Allies 5 | . . 4 1 Largest Group 2 | . . 2 2 Highest-Rated Group 90 | . . 62 90 Highest-Rated Ally 90 | . . 31 90 Total Orders . | . . . . Ally Attacks 21 | . . 11 10 Total Damage 339 | . . 191 148 Kills 4 | . . 3 1 Allies Corrupted . | . . . . Allies Melted . | . . . . X0-1V1 Amusement Gains 49 | . 9 . 40 Good Acts 15 | . . 2 13 Bad Acts 19 | . . 2 17 Intel | -11 -10 -10 -10 ------- Run | Yrd Mat Min Sub Active Infowar (turns) 1364 | 83 1246 . 35 Terrain 327 | 76 251 . . Seismic 1364 | 83 1246 . 35 Robot Analysis Total 3 | . 3 . . Derelict Logs Recovered 3 | . . 1 2 Drone Launches . | . . . . Drone Recoveries . | . . . . Exploration | -11 -10 -10 -10 ------------- Run | Yrd Mat Min Sub Turns Passed 4423 | 164 1316 799 2144 Spaces Moved 2037 | 91 670 459 817 Core 1 | 1 . . . Treads 464 | 90 374 . . Legs . | . . . . Wheels 1572 | . 296 459 817 Hover . | . . . . Flight . | . . . . Fastest Speed 50 | 50 105 135 150 Average Speed 186 | 158 152 147 240 Slowest Speed 360 | 160 240 150 360 Overloaded Moves . | . . . . Propulsion Burnouts . | . . . . Robots Hopped . | . . . . Potential Cave-ins . | . . . . Cave-ins Triggered . | . . . . Exploration Rate (%) 56 | 4 97 74 49 Regions Visited 3 Branch Regions 2 Pre-discovered Areas . | . . . . Known Exits Taken . | . . . . Unknown Exits Taken 3 | 1 1 1 . Scrap Searched 3 | . . 1 2 Spaces Dug 5 | . 4 . 1 Terrain Destroyed 9 | . 6 1 2 Melee . | . . . . Projectile 9 | . 6 1 2 AOE . | . . . . Terrain Rammed . | . . . . Walls Destroyed . | . . . . Machines Disabled . | . . . . Actions | -11 -10 -10 -10 --------- Run | Yrd Mat Min Sub Total 2387 | 102 823 524 938 Wait 57 | . 31 11 15 Move 2034 | 90 669 458 817 Hop . | . . . . Pick Up 48 | 2 20 9 17 Fast Attach 13 | 7 3 . 3 Attach 6 | . 1 1 4 Detach 4 | . 1 . 3 Swap 29 | . 14 7 8 Drop 37 | . 9 7 21 Fire 148 | 3 65 31 49 Melee . | . . . . Ram 1 | . . . 1 Kick . | . . . . Crush 10 | . 10 . . Escape Stasis . | . . . . Rewire . | . . . . Trap . | . . . . Miscellaneous . | . . . . Route ------- -11/Scrapyard -10/Materials (discovered 6 exits: [*Mat x3] / [*Min x2] / *Sub) -10/Mines (discovered 3 exits: [*Mat x2] / *Sub) -10/Subcaves (discovered 2 exits: Mat / [*Rec]) History --------- Turn | Location | Event 30 | -11/Scrapyard | Discovered new exit (range 16) 165 | -11/Scrapyard | Entered Materials 307 | -10/Materials | Build established: Mutant 747 | -10/Materials | Discovered new exit (range 12) 807 | -10/Materials | Discovered new exit (range 7) 842 | -10/Materials | Discovered new exit (range 16) 1030 | -10/Materials | Discovered new exit (range 9) 1084 | -10/Materials | Discovered new exit (range 11) 1171 | -10/Materials | Discovered new exit (range 16) 1408 | -10/Materials | Prayed at D.C.S.S. Altar Unit 1481 | -10/Materials | Entered Mines 1542 | -10/Mines | Core integrity permanently improved by X0-1V1 (+200) 1550 | -10/Mines | KI resistance permanently improved by X0-1V1 (+10%; -100 max core) 1625 | -10/Mines | Escorted by a lone wolf Derelict 1668 | -10/Mines | X0-1V1 announced a LAN party 1712 | -10/Mines | X0-1V1 upgraded hostiles (x2) 1842 | -10/Mines | Core integrity fell below 50% 2026 | -10/Mines | Learned Materials emergency access door positions 2096 | -10/Mines | Found a damaged Exp. Sensor Array with a note attached 2100 | -10/Mines | Found Prototype Device 2159 | -10/Mines | Discovered new exit (range 4) 2173 | -10/Mines | Discovered new exit (range 9) 2198 | -10/Mines | Received a Mining Laser from a helpful Derelict 2260 | -10/Mines | Discovered new exit (range 9) 2280 | -10/Mines | Entered Subcaves 2280 | -10/Subcaves | Accompanied by 2 allies 2281 | -10/Subcaves | Approached by a straggling Scientist 2285 | -10/Subcaves | Led the pair of lost Derelicts to an unsafe place 2424 | -10/Subcaves | X0-1V1 sent hostile G-34 Mercenary (x3) 2570 | -10/Subcaves | A swath of the cavern ceiling suddenly collapsed 2795 | -10/Subcaves | System corruption reached 10% 2807 | -10/Subcaves | X0-1V1 mutated your Propulsion slot to Utility slot 2853 | -10/Subcaves | X0-1V1 sent hostile G-34 Mercenary (x3) 2943 | -10/Subcaves | Heat dissipation permanently improved by X0-1V1 (+15; -75 max core) 2993 | -10/Subcaves | X0-1V1 activates XOMVISION 3019 | -10/Subcaves | Learned location of 1 exit from Materials 3146 | -10/Subcaves | Visited 4L-MR0's lab 3156 | -10/Subcaves | Learned Materials stockpile data 3208 | -10/Subcaves | Found Tower Shield 3216 | -10/Subcaves | Found Prototype Device 3411 | -10/Subcaves | Build established: Hauler-Mutant 3477 | -10/Subcaves | X0-1V1 activates XOMVISION 3648 | -10/Subcaves | Found SUBCON Basin 3923 | -10/Subcaves | Core integrity restored by X0-1V1 (+63) 4269 | -10/Subcaves | X0-1V1 activates XOMVISION 4371 | -10/Subcaves | Identified exit to Materials 4371 | -10/Subcaves | X0-1V1 revealed exit location to -8/Materials 4393 | -10/Subcaves | X0-1V1 sent hostile G-34 Mercenary (x3) 4400 | -10/Subcaves | X0-1V1 sent allied H-61 Shepherd (x1) 4406 | -10/Subcaves | Discovered new exit (range 5) 4406 | -10/Subcaves | X0-1V1 sent you into danger 4415 | -10/Subcaves | Core integrity fell below 20% 4424 | -10/Subcaves | Destroyed by S-10 Pest with Light Assault Rifle Last Messages --------------- 04398_ G-34 Mercenary destroyed. 04399_ X0-1V1: "Don't spend it all in one place." (+35 energy generation) 04400_ The cosmic winds blow in a new direction. H-61 Shepherd form resolidifies at new position. 04400_ G-34 Mercenary destroyed. 04402_ X0-1V1: "Use it or lose it, I always say." 04402_ EMP Blaster fused. 04403_ Corrupted Sml. Laser fries itself beyond repair. 04406_ EXIT=FOUND 04406_ X0-1V1: "Enjoy the ride!" 04406_ S-10 Pest springs to life. 04412_ X0-1V1's Piety Tracker destroyed. 04412_ X0-1V1 is mildly amused. 04415_ EMP Blaster destroyed. 04416_ Imp. Ion Engine destroyed. 04417_ X0-1V1 is amused. 04418_ Sub. Beam Cannon destroyed. X0-1V1's Piety Tracker suddenly appears amidst shimmering waves of color. 04423_ Arm. Wheel destroyed. 04424_ X0-1V1 guffaws! Map ----- +----------------------------------------------------+ | ?????????????????????????????????????????????????? | | ?????????????????????????????????????????????????? | | ?????????????????????????????????????????????????? | | ?????????????????????????????????????????????????? | | ?????????????????????????????????????????????????? | | ?????????????????????????????????????????????????? | | ?????????????????????????????????????????????????? | | ????????????????????????????????????????????????? | | *????????????????????????R???????????????????????? | | #???????????????????????????????????????????????? | | ##?????????????????????????????????????????????? | | #?????????????????????????????????????????????? | | ###### ??????????????????????????????????????? | | ?H????????????????????????????????????? | | ??????????????????????????????????????? | | #???????????????????????R??????????????? | | #???????????????????????????????????????? | | #???????????????????????????????????????? | | ## #???????????????????????????????????????? | | #? ##???????????????????????????????????????? | | #?? ???????????????########????#????????????? | | # #?? ???????????????#"""s "#?? ????????????? | | ####????????????????????#" #? ????????????? | | #???????????????????????#" # #????????????? | | #??????????????????????##""ts #????????????? | | ???????????????????????#<@ s #???????????? | | ???????????????????????##""ts! ???????????? | | ????????????????????????#" # ???????????? | | ????????????????????????#" #? ????????????? | | ????????????????????????#""" "#?? ????????????? | | ????????????????????????########????#????????????? | | ?????????????????????????????????????????????????? | | ?????????????????????????????????????????????????? | | ?????????????????????????????????????????????????? | | ?????????????????????????????????????????????????? | | ?????????????????????????????????????????????????? | | ?????????????????????????????????????????????????? | | ?????????????????????????????????????????????????? | | ?????????????????????????????????????????????????? | | ?????????????????????????????????????????????????? | | ?????????????????????????????????????????????????? | | ?????????????????????????????????????????????????? | | ?????????????????????????????????????????????????? | | ?????????????????????????????????????????????????? | | ?????????????????????????????????????????????????? | | ?????????????????????????????????????????????????? | | ?????????????????????????????????????????????????? | | ?????????????????????????????????????????????????? | | ?????????????????????????????????????????????????? | | ?????????????????????????????????????????????????? | +----------------------------------------------------+ Best States ------------- Heat Dissipation 40 Energy Generation 47 Energy Capacity 265 Matter Stores 378 Matter Capacity 900 Sight Range 16 Terrain Scan Range 16 Terrain Scan Density 10 Armor Coverage 150 Resistance: KI 10 Evasion (%) 40 Recoil Reduction 2 Item Schematics ----------------- None Robot Schematics ------------------ None Fabricated ------------ Nothing Repaired ---------- Nothing Studied --------- None Alien Tech Used ----------------- None Achievements -------------- None Challenges ------------ None Game ------ Seed AntisysStealthPropulsion Manual? 0 Play Time 00:28:30 Cumulative 1318.0 hours Start 2026.07.01 @ 08:26:31 End 2026.07.01 @ 09:24:42 Sessions 1 Manual Loads 0 Difficulty Rogue Special Mode None Game No. 413 Rogue 411 Adventurer 2 Explorer 0 Win Type - Total 113 Types 33/27/26/2/1/1/17/2/1/3 Lore% 98 Gallery% 92 Achievement% 91 Wizard Run 0 Options --------- Layout 0 ASCII 0 Keyboard 1 Movement Numpad Keybinds 0 Fullscreen 1 Font 24/Smallcaps Map View 76x50 Zoom Use 0% Tactical HUD 1 Map Filters NONE Filters NONE Steam 1 RUN: 657933da-c47a-4cc7-bca4-52beab06ece8